Cogmind - Beta 13 @@@ ROGUE MODE // 2024.04.15 @ 14:02:41 Player: TheLargestBoi Result: Self-destructed Performance ------------- Evolutions (2) 1000 Regions Visited (3) 600 Robots Destroyed (67) 335 Value Destroyed (1476) 1476 Prototype IDs (3) 60 Alien Tech Used (0) 0 Bonus (72) 72 TOTAL SCORE: 3543 Bonus ------- High Alert Combat Kills 82 Friendly Fire -10 Cogmind --------- Core Integrity 520/550 Matter 300/300 Energy 31/125 System Corruption 0% Temperature Cool (46) Movement Flying (26) Location -8/Materials Parts ------- > --- POWER (1) -------- Light Ion Engine > --- PROPULSION (4) --- VTOL Module VTOL Module VTOL Module VTOL Module > --- UTILITY (4) ------ Small Storage Unit Improved Sensor Array Hacking Suite > --- WEAPON (2) ------- Shock Rifle Shock Rifle > --- INVENTORY (8) ---- Light Ion Engine Improved Flight Unit Improved Flight Unit Improved Signal Interpreter Hacking Suite Shock Rifle Shock Rifle Rocket Launcher Peak State ------------ > --- POWER ------------ Light Ion Engine > --- PROPULSION ------- VTOL Module VTOL Module VTOL Module VTOL Module > --- UTILITY ---------- Small Storage Unit Improved Sensor Array Hacking Suite Hacking Suite > --- WEAPON ----------- Shock Rifle Shock Rifle > --- INVENTORY -------- Light Ion Engine Improved Flight Unit Improved Flight Unit Improved Signal Interpreter Hacking Suite Shock Rifle Shock Rifle Rocket Launcher [Rating: 27] Favorites ----------- Power Light Ion Engine Engine Light Ion Engine Power Core Light Nuclear Core Propulsion Aluminum Leg Leg Aluminum Leg Hover Unit Improved Hover Unit Flight Unit VTOL Module Utility Hacking Suite Device Seismic Detector Storage Medium Storage Unit Hackware Hacking Suite Weapon Spread Laser Energy Gun Spread Laser Ballistic Gun Assault Rifle Launcher Grenade Launcher Build | -11 -10 -9 -8 ------- Run | Yrd Mat Mat Mat Slots Evolved 4 | . . 2 2 Power . | . . . . Propulsion 2 | . . 1 1 Utility 2 | . . 1 1 Weapon . | . . . . Parts Attached 68 | 7 24 35 2 Power 9 | 1 2 6 . Engine 8 | 1 1 6 . Core 1 | . 1 . . Reactor . | . . . . Propulsion 21 | 2 4 14 1 Treads . | . . . . Leg 6 | 2 4 . . Wheel . | . . . . Hover 11 | . . 11 . Flight 4 | . . 3 1 Utility 7 | 2 2 2 1 Device 2 | 1 . . 1 Storage 3 | 1 1 1 . Processor . | . . . . Hackware 2 | . 1 1 . Protection . | . . . . Artifact . | . . . . Weapon 31 | 2 16 13 . Energy Gun 19 | . 8 11 . Energy Cannon . | . . . . Ballistic Gun 4 | 2 2 . . Ballistic Cannon . | . . . . Launcher 8 | . 6 2 . Special Weapon . | . . . . Impact Weapon . | . . . . Slashing Weapon . | . . . . Piercing Weapon . | . . . . Special Melee Weapon . | . . . . Unidentified Prototypes . | . . . . Parts Lost 13 | . . 12 1 Power 2 | . . 2 . Propulsion 7 | . . 7 . Utility 1 | . . . 1 Weapon 3 | . . 3 . Highest Loss Streak 6 | . . 6 1 To Critical Strikes . | . . . . Average Slot Usage (%) 96 | . 99 93 95 Engine 8 | . 6 10 9 Core 3 | . 7 . . Leg 13 | . 28 . . Hover 8 | . . 16 . Flight 6 | . . 12 36 Device 2 | . 3 . 6 Storage 12 | . 14 11 9 Hackware 16 | . 10 21 16 Energy Gun 19 | . 19 20 18 Ballistic Gun 3 | . 8 . . Naked Turns . | . . . . Heaviest Build 23 | 15 21 23 15 Greatest Support 20 | 20 20 20 16 Greatest Overweight (x) 5 | 1 1 5 . Average Overweight (x) . | . . . . Largest Inventory Capacity 10 | 8 10 10 8 Average Capacity 9 | 7 9 9 8 Most Carried 10 | 2 10 10 8 Average Carried 8 | 1 9 7 7 Final Capacity 10 | 8 10 8 8 Final Carried 10 | 2 10 8 8 Class Distribution -------------------- 40% | Hacker-Mutant 30% | Mutant 26% | Scavenger-Mutant Dominant Class ---------------- Mutant | -10/Materials Hacker-Mutant | -9/Materials Hacker-Sprinter | -8/Materials Resources | -11 -10 -9 -8 ----------- Run | Yrd Mat Mat Mat Matter Collected 1133 | 275 448 390 20 Remotely . | . . . . Salvage Created 1682 | 16 511 1072 83 Parts 152 | 2 57 88 5 Haulers Intercepted 5 | . 1 4 . Recyclers Shooed 1 | . . 1 . Parts Field Recycled . | . . . . Retrieved Matter . | . . . . Parts Self-Destructed . | . . . . Prevented . | . . . . Kills | -11 -10 -9 -8 ------- Run | Yrd Mat Mat Mat Combat Hostiles Destroyed 41 | . 14 26 1 Guns 27 | . 6 21 . AOE 13 | . 8 5 . Classes Destroyed 10 | 1 6 3 . Worker 7 | . . 7 . Builder 1 | . 1 . . Tunneler 1 | 1 . . . Hauler 5 | . 1 4 . Mechanic 1 | . . 1 . Operator 3 | . 3 . . Watcher 8 | . 2 5 1 Swarmer 16 | . 6 10 . Grunt 15 | . 8 7 . Sentry 10 | . . 9 1 Best Kill Streak 6 | 1 4 6 1 Combat Bots Only 6 | . 3 6 1 Max Kills in Single Turn 3 | 1 3 3 1 Gunslinging . | . . . . Exploded 3 | . 3 2 . Melee . | . . . . Uniques/NPCs Destroyed . | . . . . Combat | -11 -10 -9 -8 -------- Run | Yrd Mat Mat Mat Hostile Shots Fired 162 | . 56 96 10 Missed 38 | . 9 24 5 Damage Taken 1656 | . 572 1014 70 Core 425 | . 92 303 30 Absorbed by Shields . | . . . . Regen/Repaired (Parts) 14 | . . 14 . Core Remaining (%) 62 | 100 63 24 . Volleys Fired 142 | 2 51 81 8 Largest 2 | 2 2 2 2 Hottest 130 | 40 112 130 100 Shots Fired 262 | 4 99 143 16 Gun 250 | 4 91 139 16 Cannon . | . . . . Launcher 12 | . 8 4 . Special . | . . . . Kinetic 55 | 4 51 . . Thermal 131 | . 38 93 . Explosive 12 | . 8 4 . Electromagnetic 64 | . 2 46 16 Robot Hit Streak 14 | 2 11 14 3 Robot Miss Streak 15 | 1 7 15 4 Penetration Max . | . . . . Secondary Targets 3 | . 1 2 . Max Gunslinging Chain 1 | . 1 1 . Shots Hit Robots 173 | 2 55 108 8 Core Hits 169 | 1 32 134 2 Critical Kills . | . . . . Critical Parts Destroyed 1 | 1 . . . Critical Strikes 2 | 1 . . 1 Destroy 1 | 1 . . . Corrupt 1 | . . . 1 Melee Attacks . | . . . . Impact . | . . . . Slashing . | . . . . Piercing . | . . . . Sneak Attacks . | . . . . Combat Hostiles . | . . . . Follow-up Attacks . | . . . . Damage Inflicted 3522 | 23 1283 2068 148 Guns 2417 | 23 723 1523 148 Cannons . | . . . . Explosions 1097 | . 552 545 . Melee . | . . . . Ramming 8 | . 8 . . Kinetic 499 | 23 476 . . Thermal 1633 | . 329 1304 . Explosive 701 | . 452 249 . Electromagnetic 681 | . 18 515 148 Impact . | . . . . Slashing . | . . . . Piercing . | . . . . Highest Corruption 2 | . . 2 . Average Corruption 2 | . . 2 . Corruption Purged . | . . . . Corruption Blocked . | . . . . Effects 10 | . . 10 . Message Errors 4 | . . 4 . Matter Fused 1 | . . 1 . Heat Flow Errors 2 | . . 2 . Data Loss (minor) 2 | . . 2 . Alerts 1 | . . 1 . Overload Shots . | . . . . Overflow Damage 71 | . 30 41 . Projectiles . | . . . . Explosions 71 | . 30 41 . Melee . | . . . . Knockbacks . | . . . . Impact . | . . . . Kinetic . | . . . . Secondary . | . . . . Self-Inflicted Damage 192 | . 66 126 . Shots 6 | . 3 3 . Rammed . | . . . . Targets Rammed 2 | . 2 . . Kicked 2 | . 2 . . Crushed . | . . . . Highest Temperature 375 | . 285 375 144 Average Temperature 85 | . 64 96 64 Received Heat Transfer 555 | . 258 279 18 Effects 3 | . 1 2 . Shutdowns 1 | . . 1 . Energy Bleed 2 | . 1 1 . Siege Activations . | . . . . Robots Corrupted 2 | . . 1 1 Combat Hostiles 1 | . . . 1 Parts Fried 1 | . . . 1 Impact Corruptions . | . . . . Robots Melted . | . . . . Combat Hostiles . | . . . . Parts Melted 4 | . 1 3 . Heat Transferred 2262 | . 692 1570 . Parts Sabotaged . | . . . . Parts Stolen . | . . . . Parts Stripped . | . . . . Power Chain Reactions 4 | . 1 3 . Alert | -11 -10 -9 -8 ------- Run | Yrd Mat Mat Mat Peak Influence 523 | 5 327 523 440 Initial 198 | . 3 61 198 Average 280 | . 166 397 357 Maximum Alert Level 2 | . 1 2 2 Low Security (%) 39 | 100 66 11 16 Level 1 28 | . 33 22 53 Level 2 32 | . . 65 30 Level 3 . | . . . . Level 4 . | . . . . Level 5 . | . . . . High Security . | . . . . Max Security . | . . . . Squads Dispatched 2 | . 2 . . Investigation 1 | . 1 . . Extermination . | . . . . Reinforcement 1 | . 1 . . Assault . | . . . . Garrison . | . . . . Intercept . | . . . . Searches Triggered . | . . . . Construction Impeded . | . . . . Haulers Reinforced . | . . . . Active Scanning Responses . | . . . . Cargo Convoy Interrupts . | . . . . Stealth | -11 -10 -9 -8 --------- Run | Yrd Mat Mat Mat Distress Signals 8 | . 1 4 3 Communications Jammed . | . . . . Distress Signals . | . . . . Times Spotted 69 | . 23 38 8 Peak Tracking Total 4 | . 3 4 4 Tactical Retreats 6 | . 1 4 1 Traps | -11 -10 -9 -8 ------- Run | Yrd Mat Mat Mat Traps Triggered 3 | . . 3 . Indirectly . | . . . . Trap Hack Attempts . | . . . . Triggered . | . . . . Disarmed . | . . . . Reprogrammed . | . . . . Reused . | . . . . Traps Extracted . | . . . . Installed . | . . . . Triggered 1 | . . 1 . Machines | -11 -10 -9 -8 ---------- Run | Yrd Mat Mat Mat Machines Disabled 9 | . 4 5 . Max in Single Turn 3 | . 3 3 . Machines Repaired . | . . . . Machines Dismantled . | . . . . Machines Sabotaged . | . . . . Overloaded Fab Kills . | . . . . Hacking | -11 -10 -9 -8 --------- Run | Yrd Mat Mat Mat Machines Accessed 19 | . 6 11 2 Terminals 12 | . 4 7 1 Fabricators . | . . . . Repair Stations 1 | . . 1 . Recycling Units 5 | . 2 2 1 Scanalyzers 1 | . . 1 . Garrison Access . | . . . . Total Hacks 60 | . 21 33 6 Successful 38 | . 10 24 4 Failed 22 | . 11 9 2 Catastrophic . | . . . . Database Lockouts . | . . . . Manual 49 | . 18 25 6 Terminals 37 | . 12 21 4 Fabricators . | . . . . Repair Stations 2 | . . 2 . Recycling Units 18 | . 9 7 2 Scanalyzers 3 | . . 3 . Garrison Access . | . . . . Terminal Hacks 8 | . 2 6 . Part Schematic 1 | . . 1 . Robot Analysis 1 | . . 1 . Prototype ID Bank 1 | . . 1 . Terminal Index 2 | . 1 1 . Alert Level 2 | . 1 1 . Unreport Threat 1 | . . 1 . Fabricator Hacks . | . . . . Repair Station Hacks 2 | . . 2 . Scan Component 1 | . . 1 . Repair 1 | . . 1 . Recycling Unit Hacks 1 | . . 1 . Report Inventory 1 | . . 1 . Scanalyzer 3 | . . 3 . Insert Component 2 | . . 2 . Analyze 1 | . . 1 . Garrison Access Hacks . | . . . . Unauthorized Hacks 23 | . 8 11 4 Terminals 14 | . 4 8 2 Assimilate 5 | . 1 4 . Botnet 6 | . 2 3 1 Operators 3 | . 1 1 1 Fabricators . | . . . . Repair Stations . | . . . . Recycling Units 9 | . 4 3 2 Reject 5 | . 2 2 1 Mask 4 | . 2 1 1 Scanalyzers . | . . . . Garrison Access . | . . . . Data Cores Recovered 1 | . 1 . . Used . | . . . . Hacking Detections 14 | . 6 7 1 Full Trace Events 2 | . 2 . . Feedback Events . | . . . . Feedback Blocked . | . . . . Robot Schematics Acquired . | . . . . Robots Built . | . . . . Authchips . | . . . . Time . | . . . . Total Robot Build Rating . | . . . . Part Schematics Acquired 2 | . . 2 . Parts Built . | . . . . Authchips . | . . . . Time . | . . . . Total Part Build Rating . | . . . . Parts Repaired 1 | . . 1 . Time 26 | . . 26 . Parts Recycled . | . . . . Recycled Matter . | . . . . Retrieved Matter . | . . . . Retrieved Components . | . . . . Parts Scanalyzed 1 | . . 1 . Part Schematics Acquired 1 | . . 1 . Parts Damaged . | . . . . Bothacking | -11 -10 -9 -8 ------------ Run | Yrd Mat Mat Mat Used RIF Installer . | . . . . Robots Hacked . | . . . . Non-combat . | . . . . Combat . | . . . . Robot Hacks Applied . | . . . . Relay Couplers Released . | . . . . Fabnet Peak Effective % . | . . . . Robots Rewired . | . . . . Allies Hacked . | . . . . Hacks Repelled . | . . . . Allies | -11 -10 -9 -8 -------- Run | Yrd Mat Mat Mat Total Allies 2 | . . 2 . Largest Group 1 | . . 1 1 Highest-Rated Group 10 | . . 10 10 Highest-Rated Ally 10 | . . 10 10 Total Orders . | . . . . Ally Attacks . | . . . . Total Damage . | . . . . Kills . | . . . . Allies Corrupted . | . . . . Allies Melted . | . . . . Intel | -11 -10 -9 -8 ------- Run | Yrd Mat Mat Mat Robot Analysis Total 1 | . . 1 . Derelict Logs Recovered . | . . . . Drone Launches . | . . . . Drone Recoveries . | . . . . Exploration | -11 -10 -9 -8 ------------- Run | Yrd Mat Mat Mat Turns Passed 4686 | 72 2214 2276 124 Spaces Moved 3240 | 47 1164 1765 264 Core 5 | 5 . . . Treads . | . . . . Legs 1206 | 42 1164 . . Wheels . | . . . . Hover 1078 | . . 1078 . Flight 951 | . . 687 264 Fastest Speed 26 | 50 120 29 26 Average Speed 118 | 115 165 102 26 Slowest Speed 435 | 120 190 435 26 Overloaded Moves . | . . . . Propulsion Burnouts . | . . . . Robots Hopped 2 | . . . 2 Cave-ins Triggered . | . . . . Exploration Rate (%) 54 | 4 97 88 30 Regions Visited 3 Branch Regions . Pre-discovered Areas . | . . . . Known Exits Taken . | . . . . Unknown Exits Taken 3 | 1 1 1 . Scrap Searched . | . . . . Spaces Dug 9 | . 9 . . Terrain Destroyed 195 | . 109 86 . Melee . | . . . . Projectile . | . . . . AOE 195 | . 109 86 . Terrain Rammed . | . . . . Walls Destroyed . | . . . . Machines Disabled . | . . . . Actions | -11 -10 -9 -8 --------- Run | Yrd Mat Mat Mat Total 3807 | 57 1357 2093 300 Wait 264 | . 78 159 27 Move 3233 | 46 1163 1764 260 Hop 2 | . . . 2 Pick Up 48 | 2 18 27 1 Fast Attach 30 | 7 5 17 1 Attach 13 | . . 12 1 Detach 1 | . . 1 . Swap 25 | . 19 6 . Drop 47 | . 21 26 . Fire 142 | 2 51 81 8 Melee . | . . . . Ram . | . . . . Kick 2 | . 2 . . Crush . | . . . . Escape Stasis . | . . . . Rewire . | . . . . Trap . | . . . . Miscellaneous . | . . . . Route ------- -11/Scrapyard -10/Materials (discovered 6 exits: *Mat x3 / [*Min x2] / [*Sub]) -9/Materials (discovered 4 exits: *Mat x3 / [*Min]) -8/Materials History --------- Turn | Location | Event 12 | -11/Scrapyard | Discovered new exit (range 15) 73 | -11/Scrapyard | Entered Materials 92 | -10/Materials | Discovered new exit (range 14) 318 | -10/Materials | Build established: Mutant 327 | -10/Materials | Discovered new exit (range 5) 384 | -10/Materials | Discovered new exit (range 16) 533 | -10/Materials | Discovered new exit (range 14) 938 | -10/Materials | Build established: Scavenger-Mutant 1047 | -10/Materials | Discovered new exit (range 10) 1415 | -10/Materials | Discovered new exit (range 13) 1807 | -10/Materials | Build established: Mutant 2287 | -10/Materials | Entered another Materials area 2287 | -9/Materials | Evolved 2 slots: Propulsion x1, Utility x1 2406 | -9/Materials | Repaired Hover Unit 2571 | -9/Materials | Discovered new exit (range 11) 2584 | -9/Materials | Build established: Scavenger-Mutant 2660 | -9/Materials | Lost 6 parts (3n3w) 2758 | -9/Materials | Core integrity fell below 50% 2976 | -9/Materials | Build established: Hacker-Mutant 3377 | -9/Materials | Discovered new exit (range 16) 4013 | -9/Materials | Discovered new exit (range 10) 4179 | -9/Materials | Discovered new exit (range 5) 4563 | -9/Materials | Entered another Materials area 4563 | -8/Materials | Accompanied by 1 ally 4563 | -8/Materials | Evolved 2 slots: Propulsion x1, Utility x1 4687 | -8/Materials | Self-destructed Last Messages --------------- 04604_ K-01 Serf collects debris. 04607_ Acquired Imp. Sensor Array. 04609_ Acquired 10 matter. 04609_ Acquired Imp. Signal Interpreter. 04610_ K-01 Serf collects debris. 04617_ Technician 2b reveals location of Shock Trap. 04628_ K-01 Serf collects debris. 04648_ Technician 2b reports 0b10 security level has risen to 2. 04661_ Technician 2b destroyed. 04662_ K-01 Serf collects debris. 04665_ Door malfunctions. 04666_ K-01 Serf collects debris. 04667_ Hacking Suite destroyed. 04670_ Y-45 Defender system terminally corrupted. 04670_ Heat Sink fried. 04670_ K-01 Serf collects debris. 04682_ R-06 Scavenger collects Hover Unit. Map ----- +----------------------------------------------------+ | """ # # """ #????? | | """ + T + #????? | | " """ # ] # "" #????? | | Y """ # ###+################ # "T ] !#????? | | " ### #? ???????######?# #?"" #????? | | #?# #? """??????# ?# #? #????? | | #########?# # """ ?????#""" # #??####+##????? | | ??????????# # """ #????#""" # ###### #????? | | ??????????# # #????#""" / T #????? | | ??????????# # ?????????#""" # ### #????? | | ??????????# ###?????????# [ # #??????????? | | ??????????# #???????????######?# #??????????? | | ??????????# #??????????????????# #??????????? | | ??????????# #??????????????????# #??????????? | | ??????????# #??????????????????# #??????????? | | ??????????# #??????????????????# #??????????# | | ??????????? ??????????????????# #??????????# | | ??????????? #??????????????????# #???????##?# | | ??????????? ???????????????????# ######### ## | | ?????????????????????????######### # # | | ?????????????????? # """ # | | ?????????????????????????############ # """ # | | ???????????????????????############## %# """ # | | ???????????????????????#[ # # # | | ???????????????????????# """ """ # # """ + | | ???????????????????????# @ """ """ # # """ # | | ???????????????????????# """ """ + # """ # | | ???????????????????????# # # # | | ???????????????????????############## #####+#### | | ???????????????????????????????????# % | | ???????????????????????????????????# ### | | ???????????????????????????????????# #?? | | ?????????????????????????????####### *#? | | ?????????????????????????????#! ## =%#?" | | ?????????????????????????????# ! ## =#"" | | ?????????????????????????????# ## #"" | | ?????????????????????????????#[ ! + / | | ?????????????????????????????# ####+#### #"" | | ?????????????????????????????# [! #? ]?# #"" | | ?????????????????????????????# !! # # #?" | | ?????????????????????????????# # # #? | | ?????????????????????????????# # ! # #?? | | ?????????????????????????????############## #?? | | ??????????????????????????????????????????# #?? | | ??????????????????????????????????????????# ?? | | ??????????????????????????????????????????#^ ^^^? | | ??????????????????????????????????????????+ ^ ^? | | ??????????????????????????????????????????# """ | | ??????????????????????????????????????????# """ | | ??????????????????????????????????????????# """ | +----------------------------------------------------+ Best States ------------- Heat Dissipation 31 Energy Generation 14 Energy Capacity 265 Matter Stores 300 Matter Capacity 300 Sight Range 16 Robot Scan Range 15 Terrain Scan Density 10 Evasion (%) 64 Offensive Hacking 20 Item Schematics ----------------- Hover Unit | -9/Materials | Scanalyzed Imp. Hover Unit | -9/Materials | Hacked Robot Schematics ------------------ None Fabricated ------------ Nothing Alien Tech Used ----------------- None Achievements -------------- None Challenges ------------ None Game ------ Seed CannonSeismicMicroactuators Manual? 0 Play Time 00:35:27 Cumulative 41.2 hours Start 2024.04.15 @ 13:28:36 End 2024.04.15 @ 14:02:41 Sessions 1 Manual Loads 0 Difficulty Rogue Special Mode None Game No. 83 Rogue 83 Adventurer 0 Explorer 0 Win Type - Total 1 Types 1/0/0/0/0/0/0/0/0 Lore% 25 Gallery% 37 Achievement% 34 Wizard Run 0 Options --------- Layout 1 ASCII 0 Keyboard 0 Movement Numpad Keybinds 0 Fullscreen 1 Font 24/Smallcaps Map View 50x35 Zoom Use 0% Tactical HUD 1 Map Filters NONE Filters NONE Steam 1 RUN: 788cc6ac-9519-40b1-a634-056deec985c9